fUSD/lending_fUSD_20250120
["ID","MTS","AMOUNT","RATE_DAILY","PERIOD"]
[349700946,1737383453076,-743.86,0.00020821,2]
[349700947,1737383453086,-500.0,0.00020821,2]
[349700948,1737383453095,-500.0,0.00020821,2]
[349700949,1737383453104,-500.0,0.00020821,2]
[349700950,1737383453113,-551.73,0.00020821,2]
[349700951,1737383453123,-500.0,0.00020821,2]
[349700952,1737383453132,-2346.85,0.00020821,2]
[349700953,1737383453141,-522.45,0.00020821,2]
[349700954,1737383453151,-571.97,0.00020821,2]
[349700955,1737383453160,-500.0,0.00020821,2]
[349700956,1737383453170,-607.55,0.00020821,2]
[349700957,1737383453179,-500.0,0.00020821,2]
[349700958,1737383453188,-500.0,0.00020821,2]
[349700959,1737383453198,-500.0,0.00020821,2]
[349700960,1737383453207,-500.0,0.00020821,2]
[349700961,1737383453217,-500.0,0.00020821,2]
[349700962,1737383453226,-714.34,0.00020821,2]
[349700963,1737383453238,-881.4,0.00020821,2]
[349700964,1737383453248,-500.0,0.00020821,2]
[349700965,1737383453257,-500.0,0.00020821,2]
[349700966,1737383453267,-500.0,0.00020821,2]
[349700967,1737383453276,-662.69,0.00020821,2]
[349700968,1737383453285,-651.19,0.00020821,2]
[349700969,1737383453295,-500.0,0.00020821,2]
[349700970,1737383453307,-500.0,0.00020821,2]
[349700971,1737383453316,-522.32,0.00020821,2]
[349700972,1737383453326,-500.0,0.00020821,2]
[349700973,1737383453335,-500.0,0.00020821,2]
[349700974,1737383453345,-1372.41,0.00020821,2]
[349700975,1737383453354,-1728.81,0.00020821,2]
[349700976,1737383453363,-3023.58,0.00020821,2]
[349700977,1737383453372,-500.0,0.00020821,2]
[349700978,1737383453382,-548.66,0.00020821,2]
[349700979,1737383453391,-500.0,0.00020821,2]
[349700980,1737383453400,-500.0,0.00020821,2]
[349700981,1737383453408,-2078.39,0.00020821,2]
[349700982,1737383453416,-550.04,0.00020821,2]
[349700983,1737383453426,-787.25,0.00020821,2]
[349700984,1737383453435,-500.0,0.00020821,2]
[349700985,1737383453444,-1835.65,0.00020821,2]
[349700986,1737383453454,-500.0,0.00020821,2]
[349700987,1737383453463,-500.0,0.00020821,2]
[349700988,1737383453472,-3000.0,0.0002084,2]
[349700989,1737383453481,-500.0,0.00020893,2]
[349700990,1737383453492,-514.39,0.00020893,2]
[349700991,1737383453502,-961.9,0.00020893,2]
[349700992,1737383453511,-543.051879,0.00020893,2]
[349700993,1737383453520,-500.0,0.00020893,2]
[349700994,1737383453530,-500.0,0.00020893,2]
[349700995,1737383453539,-800.76,0.00020893,2]
[349700996,1737383453548,-1376.43,0.00020893,2]
[349700997,1737383453558,-500.0,0.00020893,2]
[349700998,1737383453568,-587.87,0.00020893,2]
[349700999,1737383453577,-500.0,0.00020893,2]
[349701000,1737383453587,-500.0,0.00020893,2]
[349701001,1737383453596,-500.0,0.00020893,2]
[349701002,1737383453606,-701.67,0.00020893,2]
[349701003,1737383453616,-1177.66,0.00020893,2]
[349701004,1737383453625,-1051.8,0.00020893,2]
[349701005,1737383453635,-500.0,0.00020893,2]
[349701006,1737383453644,-1176.97,0.00020893,2]
[349701007,1737383453654,-1283.84,0.00020893,2]
[349701008,1737383453663,-500.0,0.00020893,2]
[349701009,1737383453672,-770.36,0.00020893,2]
[349701010,1737383453681,-1580.42,0.00020893,2]
[349701011,1737383453691,-1060.52,0.00020893,2]
[349701012,1737383453701,-655.78,0.00020893,2]
[349701013,1737383453711,-724.7,0.00020893,2]
[349701014,1737383453719,-583.21,0.00020893,2]
[349701015,1737383453728,-1088.91,0.00020893,2]
[349701016,1737383453740,-532.33,0.00020893,2]
[349701017,1737383453749,-500.0,0.00020893,2]
[349701018,1737383453758,-719.7,0.00020893,2]
[349701019,1737383453768,-1333.48,0.00020893,2]
[349701020,1737383453778,-519.19323541,0.00020894,2]
[349701021,1737383453787,-500.0,0.00020894,2]
[349701022,1737383453796,-492.16582656,0.00020894,2]
[349701023,1737383453806,-500.0,0.00020894,2]
[349701024,1737383453815,-400.54122655,0.00020894,2]
[349701025,1737383453824,-713.92,0.00020894,2]
[349701026,1737383453836,-1307.7,0.00020894,2]
[349701027,1737383453845,-500.0,0.00020894,2]
[349701028,1737383453855,-500.0,0.00020894,2]
[349701029,1737383453864,-186.29526503,0.00020894,2]
[349701030,1737383453874,-1000.0,0.00020894,2]
[349701031,1737383453884,-1361.29,0.00020894,2]
[349701032,1737383453893,-500.0,0.00020894,2]
[349701033,1737383453902,-1717.38,0.00020894,2]
[349701034,1737383453913,-1776.8,0.00020894,2]
[349701035,1737383453923,-500.0,0.00020894,2]
[349701036,1737383453932,-500.0,0.00020894,2]
[349701037,1737383453943,-500.0,0.00020894,2]
[349701038,1737383453952,-500.0,0.00020894,2]
[349701039,1737383453961,-500.0,0.00020896,2]
[349701040,1737383453970,-900.0,0.000209,7]
[349701041,1737383453979,-473.92486827,0.00020936,2]
[349701042,1737383453991,-152.33677615,0.00020973,2]
[349701043,1737383454001,-237.93603127,0.0002099,2]
[349701044,1737383454010,-193.58117083,0.00020999,2]
[349701045,1737383454020,-46196.56123065,0.00021,2]
[349701046,1737383454029,-321298.68178851,0.00021,2]
[349701047,1737383454040,-144675.37610583,0.00021,3]
[349701048,1737383454049,-40393.43280063,0.00021,2]
[349701049,1737383454059,-2880.05055062,0.00021,3]
[349701050,1737383454068,-1328.13698462,0.00021011,2]
[349701051,1737383454076,-166.0,0.00021036,2]
[349701052,1737383454086,-201.0,0.0002104,4]
[349701053,1737383454095,-444.46,0.00021041,2]
[349701054,1737383454105,-916.17,0.00021041,2]
[349701055,1737383454114,-772.97,0.00021041,2]
[349701056,1737383454123,-772.97,0.00021041,2]
[349701057,1737383454133,-772.97,0.00021041,2]
[349701058,1737383454142,-2900.0,0.00021069,2]
[349701059,1737383454152,-1827.7576,0.00021069,2]
[349701060,1737383454161,-4457.7342,0.00021069,2]
[349701061,1737383454171,-1000.0,0.0002107,2]
[349701062,1737383454180,-473.92486827,0.00021073,2]
[349701063,1737383454189,-602.82,0.0002109,2]
[349701064,1737383454199,-743.27,0.00021094,2]
[349701065,1737383454208,-967.55,0.00021094,2]
[349701066,1737383454218,-500.0,0.00021094,2]
[349701067,1737383454227,-500.0,0.00021094,2]
[349701068,1737383454238,-901.57,0.00021094,2]
[349701069,1737383454395,-500.0,0.00021094,2]
[349701070,1737383454427,-508.63,0.00021094,2]
[349701071,1737383454437,-500.0,0.00021094,2]
[349701072,1737383454446,-677.62,0.00021094,2]
[349701073,1737383454456,-589.89,0.00021094,2]
[349701074,1737383454465,-500.0,0.00021094,2]
[349701075,1737383454474,-500.0,0.00021094,2]
[349701076,1737383454483,-1303.79,0.00021094,2]
[349701077,1737383454493,-500.0,0.00021095,2]
[349701078,1737383454503,-500.0,0.00021095,2]
[349701079,1737383454513,-1086.72,0.00021095,2]
[349701080,1737383454522,-500.0,0.00021095,2]
[349701081,1737383454531,-500.0,0.00021095,2]
[349701082,1737383454541,-500.0,0.00021095,2]
[349701083,1737383454550,-500.0,0.00021095,2]
[349701084,1737383454559,-500.0,0.00021095,2]
[349701085,1737383454569,-500.0,0.00021095,2]
[349701086,1737383454579,-500.0,0.00021095,2]
[349701087,1737383454589,-500.0,0.00021095,2]
[349701088,1737383454599,-500.0,0.00021095,2]
[349701089,1737383454608,-500.0,0.00021095,2]
[349701090,1737383454618,-500.0,0.00021095,2]
[349701091,1737383454628,-500.0,0.00021095,2]
[349701092,1737383454638,-500.0,0.00021095,2]
[349701093,1737383454648,-500.0,0.00021095,2]
[349701094,1737383454658,-500.0,0.00021095,2]
[349701095,1737383454667,-500.0,0.00021095,2]
[349701096,1737383454677,-500.0,0.00021095,2]
[349701097,1737383454687,-500.0,0.00021095,2]
[349701098,1737383454695,-545.72,0.00021095,2]
[349701099,1737383454704,-569.91,0.00021095,2]
[349701100,1737383454714,-500.0,0.00021095,2]
[349701101,1737383454724,-359.88582312,0.00021095,2]
[349701102,1737383454733,-500.0,0.00021095,2]
[349701103,1737383454744,-500.0,0.00021095,2]
[349701104,1737383454753,-626.47,0.00021095,2]
[349701105,1737383454763,-562.62,0.00021095,2]
[349701106,1737383454773,-523.99,0.00021095,2]
[349701107,1737383454782,-509.6,0.00021095,2]
[349701108,1737383454791,-500.0,0.00021095,2]
[349701109,1737383454800,-500.0,0.00021095,2]
[349701110,1737383454811,-563.13,0.00021095,2]
[349701111,1737383454820,-848.39,0.00021095,2]
[349701112,1737383454832,-500.0,0.00021095,2]
[349701113,1737383454843,-530.03,0.00021095,2]
[349701114,1737383454852,-647.21,0.00021095,2]
[349701115,1737383454862,-500.0,0.00021095,2]
[349701116,1737383454872,-806.27,0.00021095,2]
[349701117,1737383454883,-875.35,0.00021095,2]
[349701118,1737383454892,-950.29,0.00021095,2]
[349701119,1737383454902,-500.0,0.00021095,2]
[349701120,1737383454913,-586.02,0.00021095,2]
[349701121,1737383454923,-968.65,0.00021095,2]
[349701122,1737383454932,-1779.93,0.00021095,2]
[349701123,1737383454942,-536.86,0.00021095,2]
[349701124,1737383454951,-500.0,0.00021095,2]
[349701125,1737383454961,-978.6,0.00021095,2]
[349701126,1737383454970,-1379.51,0.00021095,2]
[349701127,1737383454980,-1011.25,0.00021095,2]
[349701128,1737383454992,-641.11,0.00021095,2]
[349701129,1737383455002,-883.6,0.00021095,2]
[349701130,1737383455012,-595.39,0.00021095,2]
[349701131,1737383455021,-962.47,0.00021095,2]
[349701132,1737383455031,-500.0,0.00021095,2]
[349701133,1737383455040,-500.0,0.00021095,2]
[349701134,1737383455050,-761.75,0.00021095,2]
[349701135,1737383455059,-519.96,0.00021095,2]
[349701136,1737383455069,-500.0,0.00021095,2]
[349701137,1737383455078,-500.0,0.00021095,2]
[349701138,1737383455087,-500.0,0.00021095,2]
[349701139,1737383455096,-743.86,0.00021095,2]
[349701140,1737383455104,-500.0,0.00021095,2]
[349701141,1737383455113,-500.0,0.00021095,2]
[349701142,1737383455123,-500.0,0.00021095,2]
[349701143,1737383455133,-551.73,0.00021095,2]
[349701144,1737383455143,-500.0,0.00021095,2]
[349701145,1737383455153,-2346.85,0.00021095,2]
[349701146,1737383455162,-522.45,0.00021095,2]
[349701147,1737383455172,-571.97,0.00021095,2]
[349701148,1737383455181,-500.0,0.00021095,2]
[349701149,1737383455190,-607.55,0.00021095,2]
[349701150,1737383455199,-500.0,0.00021095,2]
[349701151,1737383455209,-500.0,0.00021095,2]
[349701152,1737383455220,-546.75538094,0.00021095,2]
[349701153,1737383455230,-500.0,0.00021095,2]
[349701154,1737383455240,-500.0,0.00021095,2]
[349701155,1737383455250,-714.34,0.00021095,2]
[349701156,1737383455263,-881.4,0.00021095,2]
[349701157,1737383455272,-500.0,0.00021095,2]
[349701158,1737383455282,-500.0,0.00021095,2]
[349701159,1737383455291,-500.0,0.00021095,2]
[349701160,1737383455301,-662.69,0.00021095,2]
[349701161,1737383455313,-651.19,0.00021095,2]
[349701162,1737383455323,-500.0,0.00021095,2]
[349701163,1737383455333,-500.0,0.00021095,2]
[349701164,1737383455343,-522.32,0.00021095,2]
[349701165,1737383455352,-500.0,0.00021095,2]
[349701166,1737383455362,-500.0,0.00021095,2]
[349701167,1737383455371,-1372.41,0.00021095,2]
[349701168,1737383455380,-1728.81,0.00021095,2]
[349701169,1737383455390,-3023.58,0.00021095,2]
[349701170,1737383455401,-500.0,0.00021095,2]
[349701171,1737383455411,-548.66,0.00021095,2]
[349701172,1737383455421,-500.0,0.00021095,2]
[349701173,1737383455431,-500.0,0.00021095,2]
[349701174,1737383455440,-2078.39,0.00021095,2]
[349701175,1737383455450,-550.04,0.00021095,2]
[349701176,1737383455460,-787.25,0.00021095,2]
[349701177,1737383455469,-500.0,0.00021095,2]
[349701178,1737383455479,-1835.65,0.00021095,2]
[349701179,1737383455490,-500.0,0.00021095,2]
[349701180,1737383455500,-500.0,0.00021095,2]
[349701181,1737383455510,-1863.0,0.00021096,2]
[349701182,1737383455521,-1261.0,0.00021096,2]
[349701183,1737383455531,-859.0,0.00021096,2]
[349701184,1737383455540,-2947.0,0.00021096,2]
[349701185,1737383455551,-907.0,0.00021096,2]
[349701186,1737383455561,-537.0,0.00021096,2]
[349701187,1737383455571,-3983.0,0.00021096,2]
[349701188,1737383455581,-150.0,0.00021096,2]
[349701189,1737383455590,-1105.0,0.00021096,2]
[349701190,1737383455600,-1269.0,0.00021096,2]
[349701191,1737383455611,-3901.0,0.00021096,2]
[349701192,1737383455621,-2018.0,0.00021096,2]
[349701193,1737383455630,-150.0,0.00021096,2]
[349701194,1737383455641,-691.553,0.00021096,2]
[349701195,1737383455651,-152.7005417,0.000211,2]
[349701196,1737383455660,-203.83175825,0.000211,2]
[349701197,1737383455670,-11990.40203495,0.00021129,2]
[349701198,1737383455679,-203.83,0.00021137,2]
[349701199,1737383455689,-500.0,0.00021167,2]
[349701200,1737383455699,-514.39,0.00021167,2]
[349701201,1737383455708,-961.9,0.00021167,2]
[349701202,1737383455719,-543.051879,0.00021167,2]
[349701203,1737383455728,-500.0,0.00021167,2]
[349701204,1737383455740,-337.82,0.00021167,2]
[349701205,1737383455750,-800.76,0.00021167,2]
[349701206,1737383455759,-1376.43,0.00021167,2]
[349701207,1737383455768,-500.0,0.00021167,2]
[349701208,1737383455778,-587.87,0.00021167,2]
[349701209,1737383455788,-500.0,0.00021167,2]
[349701210,1737383455798,-500.0,0.00021167,2]
[349701211,1737383455807,-500.0,0.00021167,2]
[349701212,1737383455818,-701.67,0.00021167,2]
[349701213,1737383455829,-1177.66,0.00021167,2]
[349701214,1737383455842,-1051.8,0.00021167,2]
[349701215,1737383455851,-500.0,0.00021167,2]
[349701216,1737383455861,-1176.97,0.00021167,2]
[349701217,1737383455871,-1283.84,0.00021167,2]
[349701218,1737383455880,-500.0,0.00021167,2]
[349701219,1737383455890,-770.36,0.00021167,2]
[349701220,1737383455900,-1580.42,0.00021167,2]
[349701221,1737383455909,-1060.52,0.00021167,2]
[349701222,1737383455920,-655.78,0.00021167,2]
[349701223,1737383455930,-724.7,0.00021167,2]
[349701224,1737383455939,-583.21,0.00021167,2]
[349701225,1737383455949,-1088.91,0.00021167,2]
[349701226,1737383455959,-532.33,0.00021167,2]
[349701227,1737383455968,-500.0,0.00021167,2]
[349701228,1737383455978,-719.7,0.00021167,2]
[349701229,1737383455990,-1333.48,0.00021167,2]
[349701230,1737383456000,-1000.0,0.00021168,2]
[349701231,1737383456010,-1846.0,0.00021168,2]
[349701232,1737383456021,-500.0,0.00021168,2]
[349701233,1737383456031,-500.0,0.00021168,2]
[349701234,1737383456041,-713.92,0.00021168,2]
[349701235,1737383456051,-1307.7,0.00021168,2]
[349701236,1737383456061,-500.0,0.00021168,2]
[349701237,1737383456070,-500.0,0.00021168,2]
[349701238,1737383456080,-1000.0,0.00021168,2]
[349701239,1737383456090,-1361.29,0.00021168,2]
[349701240,1737383456099,-500.0,0.00021168,2]
[349701241,1737383456108,-1717.38,0.00021168,2]
[349701242,1737383456118,-1776.8,0.00021168,2]
[349701243,1737383456128,-500.0,0.00021168,2]
[349701244,1737383456139,-500.0,0.00021168,2]
[349701245,1737383456149,-500.0,0.00021168,2]
[349701246,1737383456158,-500.0,0.00021168,2]
[349701247,1737383456168,-500.0,0.0002117,2]
[349701248,1737383456178,-166.64,0.00021187,2]
[349701249,1737383456187,-93880.40985952,0.000212,2]
[349701250,1737383456197,-1200.0,0.000212,7]
[349701251,1737383456207,-473.92486827,0.00021211,2]
[349701252,1737383456217,-1328.13698462,0.00021233,2]
[349701253,1737383456227,-175.47883036,0.00021269,2]
[349701254,1737383456240,-32305.52755111,0.000213,2]
[349701255,1737383456250,-1600.0,0.000213,7]
[349701256,1737383456259,-152.0,0.00021333,4]
[349701257,1737383456268,-473.92486827,0.00021349,2]
[349701258,1737383456278,-743.27,0.00021368,2]
[349701259,1737383456288,-967.55,0.00021368,2]
[349701260,1737383456298,-500.0,0.00021368,2]
[349701261,1737383456308,-500.0,0.00021368,2]
[349701262,1737383456318,-901.57,0.00021368,2]
[349701263,1737383456328,-500.0,0.00021368,2]
[349701264,1737383456337,-508.63,0.00021368,2]
[349701265,1737383456347,-500.0,0.00021368,2]
[349701266,1737383456357,-677.62,0.00021368,2]
[349701267,1737383456367,-589.89,0.00021368,2]
[349701268,1737383456377,-500.0,0.00021368,2]
[349701269,1737383456387,-500.0,0.00021368,2]
[349701270,1737383456396,-1303.79,0.00021368,2]
[349701271,1737383456406,-500.0,0.00021369,2]
[349701272,1737383456416,-500.0,0.00021369,2]
[349701273,1737383456426,-1086.72,0.00021369,2]
[349701274,1737383456435,-500.0,0.00021369,2]
[349701275,1737383456446,-500.0,0.00021369,2]
[349701276,1737383456455,-500.0,0.00021369,2]
[349701277,1737383456465,-500.0,0.00021369,2]
[349701278,1737383456473,-500.0,0.00021369,2]
[349701279,1737383456483,-500.0,0.00021369,2]
[349701280,1737383456494,-500.0,0.00021369,2]
[349701281,1737383456503,-500.0,0.00021369,2]
[349701282,1737383456512,-500.0,0.00021369,2]
[349701283,1737383456522,-446.83101517,0.00021369,2]
[349701284,1737383456532,-500.0,0.00021369,2]
[349701285,1737383456542,-500.0,0.00021369,2]
[349701286,1737383456552,-500.0,0.00021369,2]
[349701287,1737383456561,-500.0,0.00021369,2]
[349701288,1737383456571,-500.0,0.00021369,2]
[349701289,1737383456581,-500.0,0.00021369,2]
[349701290,1737383456590,-500.0,0.00021369,2]
[349701291,1737383456599,-500.0,0.00021369,2]
[349701292,1737383456609,-545.72,0.00021369,2]
[349701293,1737383456618,-569.91,0.00021369,2]
[349701294,1737383456628,-500.0,0.00021369,2]
[349701295,1737383456637,-500.0,0.00021369,2]
[349701296,1737383456647,-500.0,0.00021369,2]
[349701297,1737383456656,-626.47,0.00021369,2]
[349701298,1737383456666,-562.62,0.00021369,2]
[349701299,1737383456675,-523.99,0.00021369,2]
[349701300,1737383456687,-509.6,0.00021369,2]
[349701301,1737383456697,-500.0,0.00021369,2]
[349701302,1737383456707,-500.0,0.00021369,2]
[349701303,1737383456715,-563.13,0.00021369,2]
[349701304,1737383456725,-848.39,0.00021369,2]
[349701305,1737383456737,-500.0,0.00021369,2]
[349701306,1737383456749,-530.03,0.00021369,2]
[349701307,1737383456759,-647.21,0.00021369,2]
[349701308,1737383456769,-500.0,0.00021369,2]
[349701309,1737383456778,-806.27,0.00021369,2]
[349701310,1737383456788,-875.35,0.00021369,2]
[349701311,1737383456798,-950.29,0.00021369,2]
[349701312,1737383456808,-500.0,0.00021369,2]
[349701313,1737383456817,-586.02,0.00021369,2]
[349701314,1737383456827,-968.65,0.00021369,2]
[349701315,1737383456840,-1779.93,0.00021369,2]
[349701316,1737383456850,-536.86,0.00021369,2]
[349701317,1737383456859,-500.0,0.00021369,2]
[349701318,1737383456869,-978.6,0.00021369,2]
[349701319,1737383456879,-1379.51,0.00021369,2]
[349701320,1737383456889,-1011.25,0.00021369,2]
[349701321,1737383456898,-641.11,0.00021369,2]
[349701322,1737383456908,-883.6,0.00021369,2]
[349701323,1737383456918,-595.39,0.00021369,2]
[349701324,1737383456927,-962.47,0.00021369,2]
[349701325,1737383456937,-500.0,0.00021369,2]
[349701326,1737383456946,-500.0,0.00021369,2]
[349701327,1737383456955,-761.75,0.00021369,2]
[349701328,1737383456964,-519.96,0.00021369,2]
[349701329,1737383456974,-500.0,0.00021369,2]
[349701330,1737383456986,-500.0,0.00021369,2]
[349701331,1737383456996,-500.0,0.00021369,2]
[349701332,1737383457006,-743.86,0.00021369,2]
[349701333,1737383457016,-500.0,0.00021369,2]
[349701334,1737383457026,-500.0,0.00021369,2]
[349701335,1737383457035,-500.0,0.00021369,2]
[349701336,1737383457045,-551.73,0.00021369,2]
[349701337,1737383457054,-500.0,0.00021369,2]
[349701338,1737383457063,-2346.85,0.00021369,2]
[349701339,1737383457073,-522.45,0.00021369,2]
[349701340,1737383457082,-571.97,0.00021369,2]
[349701341,1737383457092,-500.0,0.00021369,2]
[349701342,1737383457101,-607.55,0.00021369,2]
[349701343,1737383457110,-500.0,0.00021369,2]
[349701344,1737383457120,-500.0,0.00021369,2]
[349701345,1737383457130,-500.0,0.00021369,2]
[349701346,1737383457140,-500.0,0.00021369,2]
[349701347,1737383457149,-714.34,0.00021369,2]
[349701348,1737383457158,-881.4,0.00021369,2]
[349701349,1737383457167,-500.0,0.00021369,2]
[349701350,1737383457176,-500.0,0.00021369,2]
[349701351,1737383457186,-500.0,0.00021369,2]
[349701352,1737383457196,-662.69,0.00021369,2]
[349701353,1737383457205,-651.19,0.00021369,2]
[349701354,1737383457215,-500.0,0.00021369,2]
[349701355,1737383457224,-500.0,0.00021369,2]
[349701356,1737383457234,-522.32,0.00021369,2]
[349701357,1737383457245,-500.0,0.00021369,2]
[349701358,1737383457255,-500.0,0.00021369,2]
[349701359,1737383457265,-1372.41,0.00021369,2]
[349701360,1737383457275,-1728.81,0.00021369,2]
[349701361,1737383457284,-3023.58,0.00021369,2]
[349701362,1737383457294,-500.0,0.00021369,2]
[349701363,1737383457307,-548.66,0.00021369,2]
[349701364,1737383457318,-500.0,0.00021369,2]
[349701365,1737383457327,-500.0,0.00021369,2]
[349701366,1737383457336,-2078.39,0.00021369,2]
[349701367,1737383457346,-550.04,0.00021369,2]
[349701368,1737383457355,-787.25,0.00021369,2]
[349701369,1737383457365,-500.0,0.00021369,2]
[349701370,1737383457374,-1835.65,0.00021369,2]
[349701371,1737383457385,-500.0,0.00021369,2]
[349701372,1737383457394,-500.0,0.00021369,2]
[349701373,1737383457404,-300.0,0.000214,7]
[349701374,1737383457414,-500.0,0.00021441,2]
[349701375,1737383457424,-514.39,0.00021441,2]
[349701376,1737383457434,-961.9,0.00021441,2]
[349701377,1737383457444,-543.051879,0.00021441,2]
[349701378,1737383457453,-500.0,0.00021441,2]
[349701379,1737383457463,-800.76,0.00021441,2]
[349701380,1737383457473,-1376.43,0.00021441,2]
[349701381,1737383457483,-500.0,0.00021441,2]
[349701382,1737383457495,-587.87,0.00021441,2]
[349701383,1737383457506,-500.0,0.00021441,2]
[349701384,1737383457516,-500.0,0.00021441,2]
[349701385,1737383457525,-500.0,0.00021441,2]
[349701386,1737383457535,-181.017294,0.00021441,2]
[349701387,1737383457546,-701.67,0.00021441,2]
[349701388,1737383457556,-1177.66,0.00021441,2]
[349701389,1737383457566,-1051.8,0.00021441,2]
[349701390,1737383457576,-500.0,0.00021441,2]
[349701391,1737383457585,-1176.97,0.00021441,2]
[349701392,1737383457595,-1283.84,0.00021441,2]
[349701393,1737383457604,-500.0,0.00021441,2]
[349701394,1737383457613,-770.36,0.00021441,2]
[349701395,1737383457623,-1580.42,0.00021441,2]
[349701396,1737383457632,-1060.52,0.00021441,2]
[349701397,1737383457642,-655.78,0.00021441,2]
[349701398,1737383457652,-724.7,0.00021441,2]
[349701399,1737383457662,-583.21,0.00021441,2]
[349701400,1737383457672,-1088.91,0.00021441,2]
[349701401,1737383457683,-532.33,0.00021441,2]
[349701402,1737383457693,-296.11010726,0.00021441,2]
[349701403,1737383457703,-719.7,0.00021441,2]
[349701404,1737383457713,-1333.48,0.00021441,2]
[349701405,1737383457723,-500.0,0.00021442,2]
[349701406,1737383457732,-500.0,0.00021442,2]
[349701407,1737383457911,-713.92,0.00021442,2]
[349701408,1737383457923,-1307.7,0.00021442,2]
[349701409,1737383457933,-500.0,0.00021442,2]
[349701410,1737383457948,-500.0,0.00021442,2]
[349701411,1737383457963,-1000.0,0.00021442,2]
[349701412,1737383457973,-1361.29,0.00021442,2]
[349701413,1737383457983,-500.0,0.00021442,2]
[349701414,1737383457996,-1717.38,0.00021442,2]
[349701415,1737383458006,-1776.8,0.00021442,2]
[349701416,1737383458017,-500.0,0.00021442,2]
[349701417,1737383458027,-500.0,0.00021442,2]
[349701418,1737383458038,-500.0,0.00021442,2]
[349701419,1737383458048,-500.0,0.00021442,2]
[349701420,1737383458058,-500.0,0.00021444,2]
[349701421,1737383458068,-1328.13698462,0.00021455,2]
[349701422,1737383458078,-473.92486827,0.00021487,2]
[349701423,1737383458089,-152.70054168,0.000215,2]
[349701424,1737383458100,-300.0,0.000215,7]
[349701425,1737383458110,-203.83175825,0.000215,2]
[349701426,1737383458120,-1778.55447242,0.00021569,2]
[349701427,1737383458131,-175.47883034,0.00021585,2]
[349701428,1737383458141,-400.23,0.00021586,30]
[349701429,1737383458151,-300.0,0.000216,7]
[349701430,1737383458162,-473.92486827,0.00021624,2]
[349701431,1737383458173,-743.27,0.00021642,2]
[349701432,1737383458184,-967.55,0.00021642,2]
[349701433,1737383458195,-500.0,0.00021642,2]
[349701434,1737383458205,-500.0,0.00021642,2]
[349701435,1737383458215,-901.57,0.00021642,2]
[349701436,1737383458225,-367.62004344,0.00021642,2]
[349701437,1737383458235,-508.63,0.00021642,2]
[349701438,1737383458246,-500.0,0.00021642,2]
[349701439,1737383458256,-677.62,0.00021642,2]
[349701440,1737383458266,-589.89,0.00021642,2]
[349701441,1737383458276,-500.0,0.00021642,2]
[349701442,1737383458286,-500.0,0.00021642,2]
[349701443,1737383458296,-1303.79,0.00021642,2]
[349701444,1737383458308,-500.0,0.00021643,2]
[349701445,1737383458319,-500.0,0.00021643,2]